Cogmind - Beta 16.1 @@@ ROGUE MODE // 2026.03.30 @ 09:20:45 Player: ae Result: Destroyed by as-03533 with Assembled Rifle Performance ------------- Evolutions (0) 0 Regions Visited (4) 800 Robots Destroyed (24) 120 Value Destroyed (451) 451 Prototype IDs (28) 560 Alien Tech Used (0) 0 Bonus (300) 300 TOTAL SCORE: 2231 Bonus ------- Aligned with FarCom 300 Cogmind --------- Core Integrity 0/250 Matter 136/300 Energy 250/250 System Corruption 0% Temperature Cool (25) Movement Treading (160) Location -9/Mines Parts ------- > --- POWER (1) -------- Ion Engine > --- PROPULSION (2) --- Improved Treads Medium Treads > --- UTILITY (2) ------ Large Storage Unit Hardened Light Armor Plating > --- WEAPON (2) ------- Grenade Launcher > --- INVENTORY (15) --- Ion Engine Fission Core Light Treads Improved Treads Flight Unit Flight Unit Flight Unit Flight Unit Small Storage Unit Skeleton Box Assault Rifle Light Assault Rifle Flail Peak State ------------ > --- POWER ------------ Ion Engine > --- PROPULSION ------- Improved Treads Medium Treads > --- UTILITY ---------- Large Storage Unit Hardened Light Armor Plating > --- WEAPON ----------- Assault Rifle Assault Rifle > --- INVENTORY -------- Ion Engine Fission Core Light Treads Improved Treads Improved Treads Flight Unit Flight Unit Flight Unit Flight Unit Small Storage Unit Hardened Light Armor Plating Skeleton Box Light Assault Rifle Grenade Launcher Flail [Rating: 14] Favorites ----------- Power Ion Engine Engine Ion Engine Propulsion Improved Treads Treads Improved Treads Utility Hardened Light Armor Plating Storage Large Storage Unit Protection Hardened Light Armor Plating Weapon Assault Rifle Energy Gun EM Pulse Gun Ballistic Gun Assault Rifle Ballistic Cannon Light Cannon Launcher Grenade Launcher Build | -11 -10 -10 -10 -9 ------- Run | Yrd Mat Min Exi Min Slots Evolved . | . . . . . Power . | . . . . . Propulsion . | . . . . . Utility . | . . . . . Weapon . | . . . . . Parts Attached 18 | 6 6 1 . 5 Power 2 | 1 . . . 1 Engine 2 | 1 . . . 1 Core . | . . . . . Reactor . | . . . . . Propulsion 6 | 2 2 . . 2 Treads 6 | 2 2 . . 2 Leg . | . . . . . Wheel . | . . . . . Hover . | . . . . . Flight . | . . . . . Utility 4 | 1 2 . . 1 Device . | . . . . . Storage 2 | 1 1 . . . Processor . | . . . . . Hackware . | . . . . . Protection 2 | . 1 . . 1 Artifact . | . . . . . Weapon 6 | 2 2 1 . 1 Energy Gun 2 | 2 . . . . Energy Cannon . | . . . . . Ballistic Gun 2 | . 1 1 . . Ballistic Cannon 1 | . 1 . . . Launcher 1 | . . . . 1 Special Weapon . | . . . . . Impact Weapon . | . . . . . Slashing Weapon . | . . . . . Piercing Weapon . | . . . . . Special Melee Weapon . | . . . . . Unidentified Prototypes . | . . . . . Parts Lost 3 | . . . . 3 Power . | . . . . . Propulsion 1 | . . . . 1 Utility 1 | . . . . 1 Weapon 1 | . . . . 1 Highest Loss Streak 3 | . . . . 3 To Critical Strikes . | . . . . . Average Backups 11 | 3 8 13 15 14 Power 1 | . 1 1 1 2 Propulsion 4 | 2 3 5 7 7 Utility 1 | . 1 2 2 1 Weapon 3 | . 2 4 3 3 Tool/Special . | . . . . . Unused Backups 24 | . 7 5 1 11 Power 4 | . 1 1 . 2 Propulsion 12 | . 4 2 . 6 Utility 3 | . 1 2 . . Weapon 4 | . 1 . 1 2 Tool/Special 1 | . . . . 1 Average Slot Usage (%) 99 | . 98 100 100 96 Engine 14 | . 14 14 14 14 Treads 27 | . 28 28 28 27 Storage 14 | . 14 14 14 14 Protection 13 | . 13 14 14 13 Ballistic Gun 20 | . 13 23 28 25 Ballistic Cannon 7 | . 13 4 . . Peak Build Rating 14 | 6 11 11 12 14 Average Rating 10 | 4 10 11 11 12 On Entrance 8 | . 6 11 11 12 Avg Prop Armor Cover (%) . | . . . . . Naked Turns . | . . . . . Heaviest Build 35 | 14 35 35 34 34 Greatest Support 51 | 40 46 46 46 51 Greatest Overweight (x) . | . . . . . Average Overweight (x) . | . . . . . Largest Inventory Capacity 15 | 8 15 15 15 15 Average Capacity 13 | 7 12 15 15 15 Most Carried 15 | 7 11 15 15 15 Average Carried 11 | 4 8 13 14 14 Final Capacity 15 | 8 15 15 15 15 Final Carried 15 | 7 11 15 15 13 Class Distribution -------------------- 100% | Mutant Dominant Class ---------------- Mutant | -10/Materials Mutant | -10/Mines Mutant | -10/Exiles Mutant | -9/Mines Resources | -11 -10 -10 -10 -9 ----------- Run | Yrd Mat Min Exi Min Matter Collected 781 | 248 314 167 . 52 Remotely . | . . . . . Salvage Created 725 | 188 324 79 . 134 Parts 41 | 11 16 9 . 5 Haulers Intercepted 2 | . 2 . . . Recyclers Shooed 3 | 2 . 1 . . Parts Field Recycled . | . . . . . Retrieved Matter . | . . . . . Parts Self-Destructed . | . . . . . Prevented . | . . . . . Parts Restored . | . . . . . Kills | -11 -10 -10 -10 -9 ------- Run | Yrd Mat Min Exi Min Combat Hostiles Destroyed 26 | . 6 5 . 15 Guns 9 | . 1 5 . 3 Cannons 5 | . 5 . . . AOE 12 | . . . . 12 Classes Destroyed 9 | 3 4 1 . 1 Worker 2 | 2 . . . . Tunneler 2 | 2 . . . . Hauler 2 | . 2 . . . Recycler 1 | 1 . . . . Operator 1 | . 1 . . . Watcher 3 | . 3 . . . Swarmer 5 | . . 5 . . Grunt 8 | . 6 . . 2 Assembled 13 | . . . . 13 Best Kill Streak 13 | 3 2 3 . 13 Combat Bots Only 13 | . 2 3 . 13 Max Kills in Single Turn 3 | 1 1 2 . 3 Gunslinging 1 | . . 1 . . Exploded 3 | . . . . 3 Melee . | . . . . . Uniques/NPCs Destroyed . | . . . . . Combat | -11 -10 -10 -10 -9 -------- Run | Yrd Mat Min Exi Min Hostile Shots Fired 115 | . 23 23 . 69 Missed 29 | . 8 6 . 15 Hits 86 | . 15 17 . 54 Melee 1 | . . . . 1 Projectile 85 | . 15 17 . 53 Critical Strikes 2 | . . . . 2 Damage Taken 1269 | 26 184 136 . 923 Core 260 | 13 25 18 . 204 Absorbed by Shields . | . . . . . Core Remaining (%) 94 | 94 . . . . Volleys Fired 79 | 12 38 9 . 20 Largest 2 | 2 2 2 . 2 Hottest 80 | 80 50 40 . 40 Shots Fired 142 | 24 72 18 . 28 Gun 97 | 24 38 18 . 17 Cannon 34 | . 34 . . . Launcher 11 | . . . . 11 Special . | . . . . . Kinetic 107 | . 72 18 . 17 Thermal . | . . . . . Explosive 11 | . . . . 11 Electromagnetic 24 | 24 . . . . Robot Hit Streak 9 | 5 9 4 . 6 Robot Miss Streak 3 | 1 3 2 . 2 Penetration Max . | . . . . . Secondary Targets 2 | . . 2 . . Max Gunslinging Chain 1 | . . 1 . . Shots Hit Robots 93 | 16 46 10 . 21 Core Hits 59 | 4 17 5 . 33 Critical Kills . | . . . . . Critical Parts Destroyed . | . . . . . Critical Strikes 3 | . 3 . . . Blast 3 | . 3 . . . Melee Attacks . | . . . . . Impact . | . . . . . Slashing . | . . . . . Piercing . | . . . . . Sneak Attacks . | . . . . . Combat Hostiles . | . . . . . Follow-up Attacks . | . . . . . Damage Inflicted 2206 | 299 757 196 . 954 Guns 905 | 209 334 186 . 176 Cannons 421 | . 421 . . . Explosions 868 | 90 . . . 778 Melee . | . . . . . Ramming 12 | . 2 10 . . Kinetic 1117 | . 755 186 . 176 Thermal 90 | 90 . . . . Explosive 778 | . . . . 778 Electromagnetic 209 | 209 . . . . Impact . | . . . . . Slashing . | . . . . . Piercing . | . . . . . Highest Corruption . | . . . . . Average Corruption . | . . . . . Corruption Purged . | . . . . . Corruption Blocked . | . . . . . Overload Shots . | . . . . . Overflow Damage 29 | 5 . . . 24 Projectiles . | . . . . . Explosions 29 | 5 . . . 24 Melee . | . . . . . Knockbacks 3 | . 3 . . . Impact . | . . . . . Kinetic 3 | . 3 . . . Secondary . | . . . . . Self-Inflicted Damage 184 | 27 . . . 157 Shots 7 | 1 . . . 6 Rammed 3 | . 1 2 . . Targets Rammed 3 | . 1 2 . . Kicked . | . . . . . Crushed . | . . . . . Highest Temperature 144 | 144 78 . . 53 Average Temperature 28 | 58 16 . . 29 Received Heat Transfer 269 | . 108 . . 161 Siege Activations . | . . . . . Martial Activations . | . . . . . Shielding Activations . | . . . . . Robots Disrupted . | . . . . . Combat Hostiles . | . . . . . Robots Corrupted 1 | 1 . . . . Combat Hostiles . | . . . . . Parts Fried . | . . . . . Impact Corruptions . | . . . . . Robots Melted . | . . . . . Combat Hostiles . | . . . . . Parts Melted 1 | 1 . . . . Heat Transferred 150 | 150 . . . . Parts Sabotaged . | . . . . . Parts Stolen . | . . . . . Parts Stripped . | . . . . . Power Chain Reactions 3 | 3 . . . . Alert | -11 -10 -10 -10 -9 ------- Run | Yrd Mat Min Exi Min Maximum Alert Level . | . . . . . Low Security (%) 100 | 100 100 100 . 100 Level 1 . | . . . . . Level 2 . | . . . . . Level 3 . | . . . . . Level 4 . | . . . . . Level 5 . | . . . . . High Security . | . . . . . Max Security . | . . . . . Peak Influence 75 | 15 50 75 . 50 Initial 3 | . 3 . . . Average 11 | 1 10 11 . 21 Influence Increases 445 | 25 205 135 . 80 Destroy 0b10 Robot/C 260 | . 120 100 . 40 Destroy 0b10 Robot/NC 55 | 25 30 . . . Destroy Leader 70 | . 40 20 . 10 Successful Hack 12 | . 12 . . . Destroy Structure 33 | . 3 . . 30 Lose Combat Pursuer 15 | . . 15 . . Influence Decreases 442 | 20 210 129 6 77 Entered New Map 8 | . 2 . 6 . Time Decay 417 | 20 208 129 . 60 Lost Part 17 | . . . . 17 Squads Dispatched 1 | . 1 . . . Investigation . | . . . . . Extermination . | . . . . . Reinforcement 1 | . 1 . . . Assault . | . . . . . Garrison . | . . . . . Intercept . | . . . . . Searches Triggered . | . . . . . Construction Impeded . | . . . . . Haulers Reinforced . | . . . . . Active Scanning Responses . | . . . . . Cargo Convoy Interrupts . | . . . . . Stealth | -11 -10 -10 -10 -9 --------- Run | Yrd Mat Min Exi Min Distress Signals 1 | . 1 . . . Communications Jammed . | . . . . . Distress Signals . | . . . . . Times Spotted 37 | . 11 7 . 19 Peak Tracking Total 12 | . 3 3 . 12 Tactical Retreats 1 | . . 1 . . Traps | -11 -10 -10 -10 -9 ------- Run | Yrd Mat Min Exi Min Traps Triggered . | . . . . . Indirectly . | . . . . . Trap Hack Attempts . | . . . . . Triggered . | . . . . . Disarmed . | . . . . . Reprogrammed . | . . . . . Reused . | . . . . . Traps Extracted . | . . . . . Installed . | . . . . . Triggered . | . . . . . Machines | -11 -10 -10 -10 -9 ---------- Run | Yrd Mat Min Exi Min Machines Disabled . | . . . . . Max in Single Turn . | . . . . . Machines Repaired . | . . . . . Machines Dismantled . | . . . . . Machines Sabotaged . | . . . . . Overloaded Fab Kills . | . . . . . Hacking | -11 -10 -10 -10 -9 --------- Run | Yrd Mat Min Exi Min Machines Accessed 8 | . 5 . 2 1 Terminals 5 | . 5 . . . Fabricators . | . . . . . Repair Stations . | . . . . . Recycling Units . | . . . . . Scanalyzers . | . . . . . Garrison Access . | . . . . . Total Hacks 17 | . 14 . 2 1 Successful 9 | . 6 . 2 1 Failed 8 | . 8 . . . Catastrophic . | . . . . . Database Lockouts . | . . . . . Manual 1 | . . . 1 . Terminals 14 | . 14 . . . Fabricators . | . . . . . Repair Stations . | . . . . . Recycling Units . | . . . . . Scanalyzers . | . . . . . Garrison Access . | . . . . . Terminal Hacks 9 | . 6 . 2 1 Record 1 | . . . 1 . Prototype ID Bank 3 | . 3 . . . Open Door 1 | . . . . 1 Branch Access Points 1 | . 1 . . . Locate Traps 1 | . 1 . . . Hauler Manifests 1 | . 1 . . . Proto ID Catalog 1 | . . . 1 . Fabricator Hacks . | . . . . . Repair Station Hacks . | . . . . . Recycling Unit Hacks . | . . . . . Scanalyzer . | . . . . . Garrison Access Hacks . | . . . . . Unauthorized Hacks . | . . . . . Terminals . | . . . . . Fabricators . | . . . . . Repair Stations . | . . . . . Recycling Units . | . . . . . Scanalyzers . | . . . . . Garrison Access . | . . . . . Data Cores Recovered . | . . . . . Used . | . . . . . Hacking Detections 3 | . 3 . . . Full Trace Events . | . . . . . Feedback Events . | . . . . . Feedback Blocked . | . . . . . Robot Schematics Acquired . | . . . . . Robots Built . | . . . . . Authchips . | . . . . . Time . | . . . . . Total Robot Build Rating . | . . . . . Part Schematics Acquired . | . . . . . Parts Built . | . . . . . Authchips . | . . . . . Time . | . . . . . Total Part Build Rating . | . . . . . Part Studies Acquired . | . . . . . Parts Repaired . | . . . . . Time . | . . . . . Parts Recycled . | . . . . . Recycled Matter . | . . . . . Retrieved Matter . | . . . . . Retrieved Components . | . . . . . Parts Scanalyzed . | . . . . . Part Schematics Acquired . | . . . . . Parts Damaged . | . . . . . Bothacking | -11 -10 -10 -10 -9 ------------ Run | Yrd Mat Min Exi Min Used RIF Installer . | . . . . . Robots Hacked . | . . . . . Non-combat . | . . . . . Combat . | . . . . . Robot Hacks Applied . | . . . . . Relay Couplers Released . | . . . . . Fabnet Peak Effective % . | . . . . . Robots Rewired . | . . . . . Allies Hacked . | . . . . . Hacks Repelled . | . . . . . Allies | -11 -10 -10 -10 -9 -------- Run | Yrd Mat Min Exi Min Total Allies 1 | . . 1 . . Largest Group 1 | . . 1 1 . Highest-Rated Group 31 | . . 31 31 . Highest-Rated Ally 31 | . . 31 31 . Total Orders . | . . . . . Ally Attacks . | . . . . . Total Damage . | . . . . . Kills . | . . . . . Allies Corrupted . | . . . . . Allies Melted . | . . . . . Intel | -11 -10 -10 -10 -9 ------- Run | Yrd Mat Min Exi Min Active Infowar (turns) . | . . . . . Robot Analysis Total . | . . . . . Derelict Logs Recovered 2 | . . 2 . . Drone Launches . | . . . . . Drone Recoveries . | . . . . . Exploration | -11 -10 -10 -10 -9 ------------- Run | Yrd Mat Min Exi Min Turns Passed 2566 | 133 1079 820 405 129 Spaces Moved 1372 | 54 536 487 252 43 Core 4 | 4 . . . . Treads 1368 | 50 536 487 252 43 Legs . | . . . . . Wheels . | . . . . . Hover . | . . . . . Flight . | . . . . . Fastest Speed 50 | 50 160 160 160 160 Average Speed 159 | 151 160 160 160 160 Slowest Speed 160 | 160 160 160 160 160 Overloaded Moves . | . . . . . Propulsion Burnouts . | . . . . . Robots Hopped . | . . . . . Potential Cave-ins . | . . . . . Cave-ins Triggered . | . . . . . Exploration Rate (%) 50 | 5 95 82 60 11 Regions Visited 4 Branch Regions 3 Pre-discovered Areas 2 | . . 1 1 . Known Exits Taken 1 | . 1 . . . Unknown Exits Taken 3 | 1 . 1 1 . Scrap Searched 1 | . . 1 . . Spaces Dug . | . . . . . Terrain Destroyed 56 | 13 . . . 43 Melee . | . . . . . Projectile . | . . . . . AOE 56 | 13 . . . 43 Terrain Rammed . | . . . . . Walls Destroyed . | . . . . . Machines Disabled . | . . . . . Actions | -11 -10 -10 -10 -9 --------- Run | Yrd Mat Min Exi Min Total 1617 | 79 692 515 255 76 Wait 91 | . 86 1 . 4 Move 1368 | 53 535 486 251 43 Hop . | . . . . . Pick Up 32 | 8 12 10 2 . Fast Attach 8 | 5 3 . . . Attach 3 | 1 . . . 2 Detach 1 | . 1 . . . Swap 9 | . 3 1 . 5 Drop 23 | . 13 6 2 2 Fire 79 | 12 38 9 . 20 Melee . | . . . . . Ram . | . . . . . Kick . | . . . . . Crush 3 | . 1 2 . . Escape Stasis . | . . . . . Rewire . | . . . . . Trap . | . . . . . Miscellaneous . | . . . . . Route ------- -11/Scrapyard -10/Materials (discovered 5 exits: [*Mat x3] / *Min x2) -10/Mines (discovered 4 exits: [*Mat x2] / *Exi / [*Sub]) -10/Exiles -9/Mines History --------- Turn | Location | Event 5 | -11/Scrapyard | Discovered new exit (range 14) 134 | -11/Scrapyard | Entered Materials 313 | -10/Materials | Build established: Mutant 420 | -10/Materials | Identified exit to Mines 473 | -10/Materials | Discovered new exit (range 15) 693 | -10/Materials | Discovered new exit (range 13) 975 | -10/Materials | Discovered new exit (range 5) 1213 | -10/Materials | Entered Mines 1356 | -10/Mines | Discovered new exit (range 9) 1559 | -10/Mines | Discovered new exit (range 9) 1699 | -10/Mines | Discovered new exit (range 6) 1759 | -10/Mines | Learned location of 1 exit from Materials 1836 | -10/Mines | Deemed a non-threat by the Exiles lab entrance 1836 | -10/Mines | Discovered new exit (range 5) 1930 | -10/Mines | Escorted by a lone wolf Derelict 1950 | -10/Mines | Learned location of Storage (-9) 2033 | -10/Mines | Entered Exiles 2033 | -10/Exiles | Accompanied by 1 ally 2078 | -10/Exiles | Met 8R-AWN 2105 | -10/Exiles | Met EX-HEX 2149 | -10/Exiles | Met EX-BIN 2237 | -10/Exiles | Aligned with FarCom system 2238 | -10/Exiles | Given EX-Vault access code 2275 | -10/Exiles | Opened EX-Vault 2287 | -10/Exiles | Found Skeleton Box 2320 | -10/Exiles | Warned to stay clear of 0b10 Research branches 2369 | -10/Exiles | Met EX-DEC 2376 | -10/Exiles | Learned location of Zion (-7) 2425 | -10/Exiles | Discovered new exit (range 10) 2438 | -10/Exiles | Left Exiles lab with Skeleton Box 2438 | -10/Exiles | Entered Mines 2506 | -9/Mines | Met a Derelict who couldn't figure out how to use a Trap Extractor 2521 | -9/Mines | Assembled infested the area 2545 | -9/Mines | Core integrity fell below 50% 2557 | -9/Mines | Core integrity fell below 20% 2567 | -9/Mines | Destroyed by as-03533 with Assembled Rifle Last Messages --------------- 02536_ as-30684 destroyed. 02536_ as-37951 destroyed. 02540_ as-28692 destroyed. 02540_ Critical hit (Destroy). 02542_ as-82276 destroyed. 02542_ as-62467 destroyed. 02542_ as-04475 destroyed. 02544_ as-37639 destroyed. 02548_ as-27306 destroyed. 02556_ The unstable cave ceiling collapses. 02556_ Destroyed Asb. Hover Unit. 02558_ Assault Rifle destroyed. 02558_ as-19185 destroyed. 02558_ Destroyed Asb. Hover Unit. 02558_ as-30003 destroyed. 02558_ as-60267 destroyed. 02559_ Hrd. Light Armor Plating destroyed. 02559_ Imp. Treads destroyed. 02561_ as-28527 destroyed. 02564_ as-89662 destroyed. Map ----- +----------------------------------------------------+ | ????????????????????????????????? | | ????????????????????????????????? | | ????????????????????????????????? | | ????????????????????????????????? | | ????????????????????????????????? | | ????????????????????????????????? | | ????????????????????????????????? | | ????????????????????????????????? | | ????????????????????????????????? | | ???????? ?????????????????????? | | ?????? = ???????????###??????? | | ?????? %#???????????# ??????? | | ?????? aa#???????????# ??????? | | ?????? ###????????## #??????? | | ?????## #????????? #??????? | | ?????# #?????????# #??????? | | ?????# #???????### ##?????? | | ????? a ######### ##????? | | ????## =%*#????? | | ????# #???#### ! #????? | | ???## #??????# ##????? | | ??## a ##?????## %[#?????? | | ??# = ##?????## = ##????? | | ??# ##?????## #????? | | ??#"[ #####?## #????? | | ??# !* @ ### #????? | | ??## ### ## #????? | | ???## ## ##?# ##????? | | ????###??## ##??##### ##?????? | | ??????????#####???????####??????? | | ????????????????????????????????? | | ????????????????????????????????? | | ????????????????????????????????? | | ????????????????????????????????? | | ????????????????????????????????? | | | | | | | | | | | | | | | | | | | | | | | | | | | | | | | +----------------------------------------------------+ Best States ------------- Heat Dissipation 25 Energy Generation 10 Energy Capacity 250 Matter Stores 300 Matter Capacity 300 Sight Range 16 Terrain Scan Density 10 Armor Coverage 150 Evasion (%) 40 Recoil Reduction 2 Item Schematics ----------------- None Robot Schematics ------------------ None Fabricated ------------ Nothing Repaired ---------- Nothing Studied --------- None Alien Tech Used ----------------- None Achievements -------------- None Challenges ------------ None Game ------ Seed FusionFireBrace Manual? 0 Play Time 00:12:44 Cumulative 170.1 hours Start 2026.03.30 @ 09:09:14 End 2026.03.30 @ 09:20:45 Sessions 1 Manual Loads 0 Difficulty Rogue Special Mode None Game No. 108 Rogue 104 Adventurer 4 Explorer 0 Win Type - Total 18 Types 17/0/1/0/0/0/0/0/0/0 Lore% 82 Gallery% 58 Achievement% 53 Wizard Run 0 Options --------- Layout 0 ASCII 0 Keyboard 1 Movement Vi Keybinds 0 Fullscreen 0 Font 16/SmallcapsGlow Map View 76x50 Zoom Use 0% Tactical HUD 1 Map Filters NONE Filters NONE Steam 1 RUN: b9d478a0-7f87-4b66-9b07-c935cc0027b2